[Event "*** SCC Grand Prix: Titled Tuesday Blitz"]
[Site "Chess.com"]
[Date "2020.07.14"]
[Round "3"]
[White "GjakanTati"]
[Black "exoticprincess"]
[Result "0-1"]
[WhiteElo "2584"]
[BlackElo "2786"]
[TimeControl "180+1"]
[EndTime "10:28:17 PDT"]
[Termination "exoticprincess won on time"]

1. d4 {[%clk 0:03:00.9]} 1... d5 {[%clk 0:03:00.1]} 2. c4 {[%clk 0:03:00.9]}
2... c6 {[%clk 0:03:01]} 3. Nf3 {[%clk 0:03:00.3]} 3... Nf6 {[%clk 0:03:01.6]}
4. cxd5 {[%clk 0:03:00.5]} 4... cxd5 {[%clk 0:03:01.7]} 5. Bf4 {[%clk
0:03:00.3]} 5... Nc6 {[%clk 0:03:02.3]} 6. Nc3 {[%clk 0:02:59.7]} 6... g6 {[%clk
0:03:00.3]} 7. e3 {[%clk 0:02:58.6]} 7... a6 {[%clk 0:03:00.3]} 8. Be2 {[%clk
0:02:57.5]} 8... Bg7 {[%clk 0:03:00.3]} 9. h3 {[%clk 0:02:57]} 9... O-O {[%clk
0:03:00.6]} 10. O-O {[%clk 0:02:56.9]} 10... Bd7 {[%clk 0:02:58.2]} 11. Rc1
{[%clk 0:02:56.8]} 11... Rc8 {[%clk 0:02:56.7]} 12. Na4 {[%clk 0:02:47.8]} 12...
Ne4 {[%clk 0:02:56.2]} 13. Qb3 {[%clk 0:02:17.3]} 13... e6 {[%clk 0:02:50.1]}
14. Nb6 {[%clk 0:02:13.3]} 14... Na5 {[%clk 0:02:47.5]} 15. Qb4 {[%clk
0:02:05.2]} 15... Rxc1 {[%clk 0:02:46.9]} 16. Rxc1 {[%clk 0:02:05.5]} 16... Nc6
{[%clk 0:02:47.3]} 17. Qb3 {[%clk 0:02:05.7]} 17... Qe7 {[%clk 0:02:43.1]} 18.
Nxd7 {[%clk 0:02:04.8]} 18... Qxd7 {[%clk 0:02:43.2]} 19. Qb6 {[%clk 0:02:03.3]}
19... Rc8 {[%clk 0:02:42.2]} 20. b4 {[%clk 0:01:58.2]} 20... Bf8 {[%clk
0:02:40.6]} 21. b5 {[%clk 0:01:54.2]} 21... Nxd4 {[%clk 0:02:40.4]} 22. exd4
{[%clk 0:01:51]} 22... Nc3 {[%clk 0:02:28.7]} 23. Bf1 {[%clk 0:01:46.7]} 23...
axb5 {[%clk 0:02:28.2]} 24. Ne5 {[%clk 0:01:43.5]} 24... Qe8 {[%clk 0:02:28.4]}
25. Qxb7 {[%clk 0:01:40.4]} 25... b4 {[%clk 0:02:28]} 26. Ng4 {[%clk 0:01:36.5]}
26... Be7 {[%clk 0:02:18.5]} 27. Bh6 {[%clk 0:01:25.5]} 27... g5 {[%clk
0:02:15.3]} 28. Kh2 {[%clk 0:01:22.9]} 28... Rb8 {[%clk 0:02:03.4]} 29. Qa7
{[%clk 0:01:20.6]} 29... Ra8 {[%clk 0:02:02.8]} 30. Qc7 {[%clk 0:01:20]} 30...
Qd8 {[%clk 0:01:58.3]} 31. Qxd8+ {[%clk 0:01:10.6]} 31... Bxd8 {[%clk
0:01:59.2]} 32. Rc2 {[%clk 0:00:56.1]} 32... Rxa2 {[%clk 0:01:56.9]} 33. Rxa2
{[%clk 0:00:50.6]} 33... Nxa2 {[%clk 0:01:57.8]} 34. Bd3 {[%clk 0:00:49.5]}
34... b3 {[%clk 0:01:57.7]} 35. h4 {[%clk 0:00:37.3]} 35... gxh4 {[%clk
0:01:48.9]} 36. Bd2 {[%clk 0:00:31.6]} 36... Bb6 {[%clk 0:01:46.1]} 37. Nf6+
{[%clk 0:00:26]} 37... Kg7 {[%clk 0:01:46.5]} 38. Nh5+ {[%clk 0:00:19.8]} 38...
Kf8 {[%clk 0:01:46.7]} 39. Be3 {[%clk 0:00:16.3]} 39... b2 {[%clk 0:01:45.2]}
40. Nf6 {[%clk 0:00:14.8]} 40... Ke7 {[%clk 0:01:43.7]} 41. Nxh7 {[%clk
0:00:14.7]} 41... Nc3 {[%clk 0:01:42]} 42. Kh3 {[%clk 0:00:13.5]} 42... b1=Q
{[%clk 0:01:41.3]} 43. Bxb1 {[%clk 0:00:13.4]} 43... Nxb1 {[%clk 0:01:42.2]} 44.
Kxh4 {[%clk 0:00:14]} 44... Na3 {[%clk 0:01:42.5]} 45. Ng5 {[%clk 0:00:13.7]}
45... Nc2 {[%clk 0:01:42.7]} 46. Nf3 {[%clk 0:00:13.8]} 46... f6 {[%clk
0:01:41.5]} 47. Kg4 {[%clk 0:00:13.6]} 47... Kf7 {[%clk 0:01:40.8]} 48. Kh5
{[%clk 0:00:13.7]} 48... Bc7 {[%clk 0:01:36.7]} 49. g4 {[%clk 0:00:13.6]} 49...
Nxe3 {[%clk 0:01:33]} 50. fxe3 {[%clk 0:00:13.5]} 50... Bg3 {[%clk 0:01:33.9]}
51. g5 {[%clk 0:00:10.1]} 51... Bf2 {[%clk 0:01:34.4]} 52. gxf6 {[%clk
0:00:05.5]} 52... Kxf6 {[%clk 0:01:34.5]} 53. Ne5 {[%clk 0:00:05.2]} 53... Kf5
{[%clk 0:01:34.4]} 54. Ng4 {[%clk 0:00:04.7]} 54... Bg1 {[%clk 0:01:34.7]} 55.
Nh6+ {[%clk 0:00:01.3]} 55... Ke4 {[%clk 0:01:34.7]} 0-1

[Event "*** SCC Grand Prix: Titled Tuesday Blitz"]
[Site "Chess.com"]
[Date "2020.07.14"]
[Round "3"]
[White "m_ezat"]
[Black "BlueWizzard"]
[Result "1-0"]
[WhiteElo "2554"]
[BlackElo "2753"]
[TimeControl "180+1"]
[EndTime "10:28:19 PDT"]
[Termination "m_ezat won by resignation"]

1. d4 {[%clk 0:03:00.9]} 1... Nf6 {[%clk 0:02:59.5]} 2. c4 {[%clk 0:03:01.2]}
2... Nc6 {[%clk 0:02:57.7]} 3. Nf3 {[%clk 0:03:00.3]} 3... d6 {[%clk 0:02:57.4]}
4. d5 {[%clk 0:02:57.8]} 4... Ne5 {[%clk 0:02:56.8]} 5. Nxe5 {[%clk 0:02:58.3]}
5... dxe5 {[%clk 0:02:57.7]} 6. Nc3 {[%clk 0:02:58.4]} 6... e6 {[%clk
0:02:58.1]} 7. e4 {[%clk 0:02:58.5]} 7... Bc5 {[%clk 0:02:56.9]} 8. Bg5 {[%clk
0:02:55.9]} 8... h6 {[%clk 0:02:55.3]} 9. Bh4 {[%clk 0:02:55.2]} 9... O-O {[%clk
0:02:52.6]} 10. Be2 {[%clk 0:02:54.1]} 10... Bd4 {[%clk 0:02:51.3]} 11. O-O
{[%clk 0:02:51.7]} 11... exd5 {[%clk 0:02:49.1]} 12. cxd5 {[%clk 0:02:38.1]}
12... Bxc3 {[%clk 0:02:44.6]} 13. bxc3 {[%clk 0:02:37.4]} 13... Qd6 {[%clk
0:02:45.3]} 14. Bd3 {[%clk 0:02:26.9]} 14... c6 {[%clk 0:02:36.5]} 15. c4 {[%clk
0:02:25.8]} 15... b6 {[%clk 0:02:32.1]} 16. Rc1 {[%clk 0:02:14.8]} 16... Bb7
{[%clk 0:02:25.9]} 17. Kh1 {[%clk 0:02:07.3]} 17... Nd7 {[%clk 0:02:25.1]} 18.
Qg4 {[%clk 0:02:04.8]} 18... Nc5 {[%clk 0:02:21.7]} 19. Bc2 {[%clk 0:02:04.5]}
19... cxd5 {[%clk 0:02:18.8]} 20. cxd5 {[%clk 0:02:04]} 20... Bc8 {[%clk
0:02:09.2]} 21. Qh5 {[%clk 0:02:00.1]} 21... Ba6 {[%clk 0:02:02.2]} 22. Rfd1
{[%clk 0:01:50.7]} 22... Rac8 {[%clk 0:02:02]} 23. Bg3 {[%clk 0:01:44.4]} 23...
Nd7 {[%clk 0:01:55.8]} 24. Ba4 {[%clk 0:01:37]} 24... Rxc1 {[%clk 0:01:35.7]}
25. Rxc1 {[%clk 0:01:36.8]} 25... Qa3 {[%clk 0:01:29.4]} 26. Qd1 {[%clk
0:01:36.3]} 26... Nc5 {[%clk 0:01:29.6]} 27. Bc2 {[%clk 0:01:25.4]} 27... f6
{[%clk 0:01:24.4]} 28. f4 {[%clk 0:01:20.2]} 28... Bd3 {[%clk 0:01:13.1]} 29.
fxe5 {[%clk 0:01:16.7]} 29... fxe5 {[%clk 0:01:12.9]} 30. d6 {[%clk 0:01:00.3]}
30... Bxe4 {[%clk 0:00:59]} 31. Bxe4 {[%clk 0:00:35.9]} 31... Nxe4 {[%clk
0:00:59.9]} 32. d7 {[%clk 0:00:35.2]} 32... Qxg3 {[%clk 0:00:33.1]} 33. hxg3
{[%clk 0:00:30.7]} 33... Nf2+ {[%clk 0:00:32.2]} 34. Kh2 {[%clk 0:00:31]} 34...
Nxd1 {[%clk 0:00:33.1]} 35. Rc8 {[%clk 0:00:30.9]} 1-0

[Event "*** SCC Grand Prix: Titled Tuesday Blitz"]
[Site "Chess.com"]
[Date "2020.07.14"]
[Round "3"]
[White "pedro_gines"]
[Black "Speshka"]
[Result "0-1"]
[WhiteElo "2437"]
[BlackElo "2169"]
[TimeControl "180+1"]
[EndTime "10:28:21 PDT"]
[Termination "Speshka won by resignation"]

1. d4 {[%clk 0:03:00.9]} 1... f5 {[%clk 0:02:55.7]} 2. Nf3 {[%clk 0:02:57]} 2...
Nf6 {[%clk 0:02:55]} 3. g3 {[%clk 0:02:56.3]} 3... g6 {[%clk 0:02:54.9]} 4. Bg2
{[%clk 0:02:56.8]} 4... Bg7 {[%clk 0:02:54.9]} 5. O-O {[%clk 0:02:56.8]} 5...
O-O {[%clk 0:02:54.8]} 6. c4 {[%clk 0:02:57.4]} 6... d6 {[%clk 0:02:54.9]} 7.
Nc3 {[%clk 0:02:57.8]} 7... Qe8 {[%clk 0:02:54.8]} 8. d5 {[%clk 0:02:47.3]} 8...
e5 {[%clk 0:02:51.3]} 9. dxe6 {[%clk 0:02:46.8]} 9... Bxe6 {[%clk 0:02:50.5]}
10. Nd4 {[%clk 0:02:42.8]} 10... Bc8 {[%clk 0:02:49.5]} 11. Qb3 {[%clk
0:02:38.6]} 11... c6 {[%clk 0:02:43.9]} 12. Bf4 {[%clk 0:02:38.3]} 12... Nh5
{[%clk 0:02:26.9]} 13. Rad1 {[%clk 0:01:58.2]} 13... Nxf4 {[%clk 0:02:23.6]} 14.
gxf4 {[%clk 0:01:57.6]} 14... Na6 {[%clk 0:02:15.3]} 15. Qc2 {[%clk 0:01:45.4]}
15... Bd7 {[%clk 0:02:05.8]} 16. e3 {[%clk 0:01:35.7]} 16... Rd8 {[%clk
0:02:01.9]} 17. Rd2 {[%clk 0:01:30.8]} 17... Bc8 {[%clk 0:01:58.9]} 18. Rfd1
{[%clk 0:01:31.2]} 18... Qe7 {[%clk 0:01:52.4]} 19. Bxc6 {[%clk 0:00:45.9]}
19... bxc6 {[%clk 0:01:49.9]} 20. Nxc6 {[%clk 0:00:46.8]} 20... Qc7 {[%clk
0:01:41.4]} 21. Nxd8 {[%clk 0:00:28.3]} 21... Rxd8 {[%clk 0:01:40]} 22. Nb5
{[%clk 0:00:27.3]} 22... Qa5 {[%clk 0:01:31.8]} 23. Rxd6 {[%clk 0:00:26.6]}
23... Rxd6 {[%clk 0:01:25.6]} 24. Nxd6 {[%clk 0:00:25.9]} 24... Be6 {[%clk
0:01:24]} 25. a3 {[%clk 0:00:22.7]} 25... Bf8 {[%clk 0:01:17.8]} 26. b4 {[%clk
0:00:05.4]} 26... Qxa3 {[%clk 0:01:13.2]} 27. c5 {[%clk 0:00:03.7]} 27... Qxb4
{[%clk 0:01:11]} 28. Qc1 {[%clk 0:00:01.4]} 28... Nxc5 {[%clk 0:01:03.8]} 29. h4
{[%clk 0:00:01.6]} 29... Nb3 {[%clk 0:01:00.5]} 30. Qc7 {[%clk 0:00:01.3]} 30...
Qc5 {[%clk 0:00:49.4]} 31. Qxc5 {[%clk 0:00:01]} 31... Nxc5 {[%clk 0:00:48.8]}
32. Nb5 {[%clk 0:00:01.2]} 32... a5 {[%clk 0:00:46.9]} 33. Ra1 {[%clk
0:00:01.2]} 33... a4 {[%clk 0:00:46.3]} 34. Kf1 {[%clk 0:00:01.7]} 34... Bc4+
{[%clk 0:00:45.2]} 35. Ke1 {[%clk 0:00:02.2]} 35... Bxb5 {[%clk 0:00:45.2]} 0-1

[Event "*** SCC Grand Prix: Titled Tuesday Blitz"]
[Site "Chess.com"]
[Date "2020.07.14"]
[Round "3"]
[White "BabyFacedAssasin"]
[Black "profofchess"]
[Result "0-1"]
[WhiteElo "2225"]
[BlackElo "2479"]
[TimeControl "180+1"]
[EndTime "10:28:26 PDT"]
[Termination "profofchess won by resignation"]

1. e4 {[%clk 0:03:00.9]} 1... e6 {[%clk 0:03:00.2]} 2. d4 {[%clk 0:03:00.4]}
2... d5 {[%clk 0:03:00.7]} 3. Bd3 {[%clk 0:02:59.6]} 3... dxe4 {[%clk
0:03:00.2]} 4. Bxe4 {[%clk 0:02:59.7]} 4... Nf6 {[%clk 0:03:01]} 5. Bf3 {[%clk
0:02:59.9]} 5... Bd6 {[%clk 0:03:01.6]} 6. Ne2 {[%clk 0:02:57.1]} 6... Nbd7
{[%clk 0:02:59.8]} 7. Ng3 {[%clk 0:02:52.4]} 7... e5 {[%clk 0:02:51.9]} 8. O-O
{[%clk 0:02:38.5]} 8... O-O {[%clk 0:02:47.8]} 9. Nc3 {[%clk 0:02:29.1]} 9...
Re8 {[%clk 0:02:41.8]} 10. Nf5 {[%clk 0:02:23.9]} 10... e4 {[%clk 0:02:30.2]}
11. Nxd6 {[%clk 0:02:19.4]} 11... cxd6 {[%clk 0:02:31.1]} 12. Be2 {[%clk
0:02:18.1]} 12... Nf8 {[%clk 0:02:29.7]} 13. Bg5 {[%clk 0:02:11.1]} 13... Ng6
{[%clk 0:02:26.9]} 14. f3 {[%clk 0:02:04.5]} 14... e3 {[%clk 0:01:50.9]} 15. Nd5
{[%clk 0:01:56.2]} 15... h6 {[%clk 0:01:20.8]} 16. Nxf6+ {[%clk 0:01:44.7]}
16... gxf6 {[%clk 0:01:21.7]} 17. Bxh6 {[%clk 0:01:45.1]} 17... f5 {[%clk
0:01:09.7]} 18. Qd3 {[%clk 0:01:31.3]} 18... f4 {[%clk 0:01:06.9]} 19. g3 {[%clk
0:01:26.3]} 19... Qf6 {[%clk 0:01:05.4]} 20. Bxf4 {[%clk 0:01:21.7]} 20... Nxf4
{[%clk 0:01:06.3]} 21. gxf4 {[%clk 0:01:21.9]} 21... Bh3 {[%clk 0:01:02.8]} 22.
Kh1 {[%clk 0:01:14.2]} 22... Bxf1 {[%clk 0:01:01.8]} 23. Rxf1 {[%clk 0:01:13]}
23... Kh8 {[%clk 0:00:59.1]} 24. f5 {[%clk 0:00:58.9]} 24... Re7 {[%clk
0:00:49.2]} 25. f4 {[%clk 0:00:45.3]} 25... Qh4 {[%clk 0:00:33.6]} 26. Rf3
{[%clk 0:00:33.6]} 26... Rg8 {[%clk 0:00:24.8]} 27. f6 {[%clk 0:00:27.9]} 27...
Re6 {[%clk 0:00:20.1]} 28. Bf1 {[%clk 0:00:20.2]} 28... e2 {[%clk 0:00:17.5]}
29. Rh3 {[%clk 0:00:16.3]} 29... e1=Q {[%clk 0:00:13.7]} 30. Rxh4+ {[%clk
0:00:08.1]} 30... Qxh4 {[%clk 0:00:13.9]} 31. Qf3 {[%clk 0:00:07.6]} 31... Rxf6
{[%clk 0:00:12.2]} 0-1

[Event "*** SCC Grand Prix: Titled Tuesday Blitz"]
[Site "Chess.com"]
[Date "2020.07.14"]
[Round "3"]
[White "anon569"]
[Black "VladimirBugayev"]
[Result "0-1"]
[WhiteElo "2307"]
[BlackElo "2119"]
[TimeControl "180+1"]
[EndTime "10:28:26 PDT"]
[Termination "VladimirBugayev won on time"]

1. e4 {[%clk 0:03:00.9]} 1... c6 {[%clk 0:02:59.8]} 2. d4 {[%clk 0:02:59.7]}
2... d5 {[%clk 0:03:00.3]} 3. Nd2 {[%clk 0:02:58.4]} 3... dxe4 {[%clk
0:02:59.7]} 4. Nxe4 {[%clk 0:02:58.2]} 4... Nf6 {[%clk 0:03:00.3]} 5. Nxf6+
{[%clk 0:02:56.7]} 5... exf6 {[%clk 0:03:00.2]} 6. Be3 {[%clk 0:02:54.9]} 6...
Bd6 {[%clk 0:02:55.7]} 7. Qd2 {[%clk 0:02:53.5]} 7... O-O {[%clk 0:02:52.4]} 8.
Bd3 {[%clk 0:02:32.8]} 8... Na6 {[%clk 0:02:39]} 9. a3 {[%clk 0:02:16]} 9... Nc7
{[%clk 0:02:37.2]} 10. c4 {[%clk 0:02:13.9]} 10... Re8 {[%clk 0:02:36.6]} 11.
Ne2 {[%clk 0:02:12.1]} 11... Be6 {[%clk 0:02:04.4]} 12. O-O {[%clk 0:02:04.9]}
12... b5 {[%clk 0:02:00]} 13. d5 {[%clk 0:01:36.6]} 13... bxc4 {[%clk
0:01:39.1]} 14. dxe6 {[%clk 0:01:28.1]} 14... cxd3 {[%clk 0:01:38.5]} 15. exf7+
{[%clk 0:01:27.9]} 15... Kxf7 {[%clk 0:01:39]} 16. Nc1 {[%clk 0:01:22.1]} 16...
Nd5 {[%clk 0:01:36.2]} 17. Nxd3 {[%clk 0:01:01.9]} 17... Nxe3 {[%clk 0:01:33.3]}
18. fxe3 {[%clk 0:01:01.9]} 18... Qc7 {[%clk 0:01:30.9]} 19. Nf4 {[%clk
0:00:59.3]} 19... Rad8 {[%clk 0:01:23.6]} 20. Qc3 {[%clk 0:00:54.9]} 20... Qe7
{[%clk 0:00:50.5]} 21. Rae1 {[%clk 0:00:43.1]} 21... Qe4 {[%clk 0:00:49.8]} 22.
Qb3+ {[%clk 0:00:20.4]} 22... Kf8 {[%clk 0:00:49.3]} 23. Nh3 {[%clk 0:00:19.8]}
23... Rb8 {[%clk 0:00:46.2]} 24. Qa2 {[%clk 0:00:19.1]} 24... Qe5 {[%clk
0:00:36.7]} 25. Nf4 {[%clk 0:00:09.5]} 25... Rxb2 {[%clk 0:00:36.3]} 26. Qc4
{[%clk 0:00:08.7]} 26... g5 {[%clk 0:00:36.3]} 27. Qxc6 {[%clk 0:00:02]} 27...
gxf4 {[%clk 0:00:34.1]} 28. exf4 {[%clk 0:00:02.4]} 28... Qc5+ {[%clk
0:00:30.5]} 0-1

[Event "*** SCC Grand Prix: Titled Tuesday Blitz"]
[Site "Chess.com"]
[Date "2020.07.14"]
[Round "3"]
[White "czasnaszachy"]
[Black "Klaus1995"]
[Result "0-1"]
[WhiteElo "2226"]
[BlackElo "1882"]
[TimeControl "180+1"]
[EndTime "10:28:26 PDT"]
[Termination "Klaus1995 won by checkmate"]

1. d4 {[%clk 0:03:00.9]} 1... Nf6 {[%clk 0:02:58.6]} 2. c4 {[%clk 0:03:00]} 2...
e6 {[%clk 0:02:59.2]} 3. Nc3 {[%clk 0:02:59.8]} 3... c5 {[%clk 0:02:59.6]} 4. d5
{[%clk 0:02:57.9]} 4... exd5 {[%clk 0:03:00.5]} 5. cxd5 {[%clk 0:02:58.3]} 5...
d6 {[%clk 0:03:00.3]} 6. e4 {[%clk 0:02:59]} 6... g6 {[%clk 0:02:59.7]} 7. Bd3
{[%clk 0:02:57.3]} 7... Bg7 {[%clk 0:02:59.8]} 8. h3 {[%clk 0:02:55.3]} 8... a6
{[%clk 0:02:59.8]} 9. Nf3 {[%clk 0:02:55.7]} 9... b5 {[%clk 0:02:58.8]} 10. O-O
{[%clk 0:02:52.6]} 10... O-O {[%clk 0:02:58.9]} 11. Bg5 {[%clk 0:02:46]} 11...
Re8 {[%clk 0:02:58.6]} 12. Qd2 {[%clk 0:02:38.7]} 12... Qc7 {[%clk 0:02:56.9]}
13. Rac1 {[%clk 0:02:34.3]} 13... b4 {[%clk 0:02:56.1]} 14. Bxf6 {[%clk
0:02:18.5]} 14... Bxf6 {[%clk 0:02:54.2]} 15. Ne2 {[%clk 0:02:16.2]} 15... Nd7
{[%clk 0:02:52.5]} 16. b3 {[%clk 0:02:05]} 16... a5 {[%clk 0:02:50.1]} 17. Ng3
{[%clk 0:01:52.8]} 17... Ba6 {[%clk 0:02:49.3]} 18. Bxa6 {[%clk 0:01:49.3]}
18... Rxa6 {[%clk 0:02:50.2]} 19. Rfe1 {[%clk 0:01:49]} 19... Bc3 {[%clk
0:02:45.2]} 20. Qd3 {[%clk 0:01:45.7]} 20... Bxe1 {[%clk 0:02:44.3]} 21. Qxa6
{[%clk 0:01:41.6]} 21... Bc3 {[%clk 0:02:41.1]} 22. Qb5 {[%clk 0:01:35.1]} 22...
Nf6 {[%clk 0:02:26.2]} 23. Rc2 {[%clk 0:01:28.8]} 23... Rb8 {[%clk 0:02:23.9]}
24. Qc4 {[%clk 0:01:26]} 24... Qe7 {[%clk 0:02:16.8]} 25. Re2 {[%clk 0:01:16.4]}
25... Re8 {[%clk 0:02:15.9]} 26. Ne1 {[%clk 0:01:01.6]} 26... Qb7 {[%clk
0:01:43]} 27. Nd3 {[%clk 0:00:58.2]} 27... h5 {[%clk 0:01:35.7]} 28. f3 {[%clk
0:00:55.4]} 28... h4 {[%clk 0:01:33.4]} 29. Nf1 {[%clk 0:00:52.2]} 29... Nxd5
{[%clk 0:01:28.3]} 30. Rc2 {[%clk 0:00:27.2]} 30... Bd4+ {[%clk 0:01:19.3]} 31.
Kh1 {[%clk 0:00:25.2]} 31... Ne3 {[%clk 0:01:19.4]} 32. Nxe3 {[%clk 0:00:24.4]}
32... Bxe3 {[%clk 0:01:20.3]} 33. Re2 {[%clk 0:00:21.4]} 33... Bd4 {[%clk
0:01:17.1]} 34. Nf4 {[%clk 0:00:21.6]} 34... Qd7 {[%clk 0:00:43.7]} 35. Nd5
{[%clk 0:00:19]} 35... a4 {[%clk 0:00:43.3]} 36. Nf4 {[%clk 0:00:14.4]} 36...
axb3 {[%clk 0:00:41.8]} 37. axb3 {[%clk 0:00:14.3]} 37... Ra8 {[%clk 0:00:41]}
38. Qd5 {[%clk 0:00:14]} 38... Ra1+ {[%clk 0:00:39.3]} 39. Kh2 {[%clk
0:00:13.2]} 39... Bg1+ {[%clk 0:00:39.2]} 40. Kh1 {[%clk 0:00:12.3]} 40... Bf2+
{[%clk 0:00:39.4]} 41. Kh2 {[%clk 0:00:11.9]} 41... Bg3# {[%clk 0:00:39.6]} 0-1

[Event "*** SCC Grand Prix: Titled Tuesday Blitz"]
[Site "Chess.com"]
[Date "2020.07.14"]
[Round "3"]
[White "Natalya_Buksa"]
[Black "Nastya_Rakhmangulova"]
[Result "1-0"]
[WhiteElo "2528"]
[BlackElo "2338"]
[TimeControl "180+1"]
[EndTime "10:28:27 PDT"]
[Termination "Natalya_Buksa won by checkmate"]

1. d4 {[%clk 0:03:00.9]} 1... d5 {[%clk 0:03:00.1]} 2. Nc3 {[%clk 0:03:01.2]}
2... Nf6 {[%clk 0:02:43]} 3. Bf4 {[%clk 0:03:01.3]} 3... Bf5 {[%clk 0:02:40.5]}
4. e3 {[%clk 0:03:00.9]} 4... e6 {[%clk 0:02:20.3]} 5. Nf3 {[%clk 0:02:59.3]}
5... Bd6 {[%clk 0:02:17.7]} 6. Ne5 {[%clk 0:02:58.4]} 6... Nbd7 {[%clk
0:02:10.7]} 7. g4 {[%clk 0:02:54]} 7... Bg6 {[%clk 0:02:08.4]} 8. h4 {[%clk
0:02:53.3]} 8... Bb4 {[%clk 0:01:18.9]} 9. a3 {[%clk 0:01:55.1]} 9... Bxc3+
{[%clk 0:01:16.3]} 10. bxc3 {[%clk 0:01:56]} 10... h5 {[%clk 0:00:57.4]} 11.
Nxg6 {[%clk 0:01:54.3]} 11... fxg6 {[%clk 0:00:58.3]} 12. Bd3 {[%clk 0:01:52.8]}
12... Nf8 {[%clk 0:00:55.2]} 13. g5 {[%clk 0:01:24.9]} 13... Ne4 {[%clk
0:00:54.2]} 14. Bxe4 {[%clk 0:01:25.1]} 14... dxe4 {[%clk 0:00:53.9]} 15. Qe2
{[%clk 0:01:25.3]} 15... c6 {[%clk 0:00:48]} 16. Be5 {[%clk 0:01:13.4]} 16...
Rg8 {[%clk 0:00:47.2]} 17. Rb1 {[%clk 0:01:00.8]} 17... Qa5 {[%clk 0:00:29.8]}
18. Rxb7 {[%clk 0:00:47.5]} 18... Qxc3+ {[%clk 0:00:30]} 19. Kf1 {[%clk
0:00:47.9]} 19... Nd7 {[%clk 0:00:26.4]} 20. Bd6 {[%clk 0:00:39.5]} 20... Rd8
{[%clk 0:00:12.5]} 21. Bb4 {[%clk 0:00:37.7]} 21... Qa1+ {[%clk 0:00:09.6]} 22.
Kg2 {[%clk 0:00:37.5]} 22... Qa2 {[%clk 0:00:10.3]} 23. Rxa7 {[%clk 0:00:21.3]}
23... c5 {[%clk 0:00:10]} 24. Ba5 {[%clk 0:00:20.2]} 24... Rb8 {[%clk
0:00:08.6]} 25. Bc7 {[%clk 0:00:13.8]} 25... Rb2 {[%clk 0:00:08.3]} 26. Qa6
{[%clk 0:00:12]} 26... Ke7 {[%clk 0:00:05.5]} 27. Qd6+ {[%clk 0:00:11.5]} 27...
Ke8 {[%clk 0:00:05.8]} 28. Ra8+ {[%clk 0:00:11.4]} 28... Kf7 {[%clk 0:00:06.1]}
29. Qxd7# {[%clk 0:00:11.8]} 1-0

[Event "*** SCC Grand Prix: Titled Tuesday Blitz"]
[Site "Chess.com"]
[Date "2020.07.14"]
[Round "3"]
[White "dpopadic"]
[Black "LilRag"]
[Result "1/2-1/2"]
[WhiteElo "2334"]
[BlackElo "2509"]
[TimeControl "180+1"]
[EndTime "10:28:27 PDT"]
[Termination "Game drawn by repetition"]

1. e4 {[%clk 0:03:00.9]} 1... c5 {[%clk 0:02:59.8]} 2. Nc3 {[%clk 0:03:00.1]}
2... e6 {[%clk 0:03:00]} 3. d3 {[%clk 0:02:59]} 3... Nc6 {[%clk 0:03:00.2]} 4.
g4 {[%clk 0:02:59.1]} 4... d5 {[%clk 0:02:59.5]} 5. Bg2 {[%clk 0:02:59]} 5...
Nge7 {[%clk 0:02:57.4]} 6. Nh3 {[%clk 0:02:59]} 6... dxe4 {[%clk 0:02:54.1]} 7.
Nxe4 {[%clk 0:02:58.1]} 7... Ng6 {[%clk 0:02:52.1]} 8. O-O {[%clk 0:02:57.8]}
8... Be7 {[%clk 0:02:49.5]} 9. Be3 {[%clk 0:02:53.7]} 9... Qa5 {[%clk
0:02:32.5]} 10. c3 {[%clk 0:02:37.9]} 10... Bd7 {[%clk 0:02:31.9]} 11. Qe2
{[%clk 0:02:36.6]} 11... O-O {[%clk 0:02:29.9]} 12. Ng3 {[%clk 0:02:33.4]} 12...
e5 {[%clk 0:02:23.2]} 13. Be4 {[%clk 0:02:24.7]} 13... Be6 {[%clk 0:02:16.6]}
14. Nf5 {[%clk 0:02:23.1]} 14... Rfe8 {[%clk 0:02:12.6]} 15. Kh1 {[%clk
0:02:16]} 15... Rad8 {[%clk 0:02:11]} 16. f3 {[%clk 0:02:09.9]} 16... Qb5 {[%clk
0:01:52.5]} 17. Rfd1 {[%clk 0:01:59]} 17... c4 {[%clk 0:01:50]} 18. dxc4 {[%clk
0:01:51.4]} 18... Bxc4 {[%clk 0:01:49.9]} 19. Qf2 {[%clk 0:01:51.4]} 19... Bd3
{[%clk 0:01:26.5]} 20. a4 {[%clk 0:01:45]} 20... Qa6 {[%clk 0:01:26.1]} 21. b4
{[%clk 0:01:04.4]} 21... Bxe4 {[%clk 0:01:15.2]} 22. fxe4 {[%clk 0:01:04.1]}
22... Qc4 {[%clk 0:01:11.2]} 23. Nxe7+ {[%clk 0:00:53.3]} 23... Ncxe7 {[%clk
0:01:01.7]} 24. Qf3 {[%clk 0:00:49.9]} 24... Qxc3 {[%clk 0:00:55.4]} 25. b5
{[%clk 0:00:36.8]} 25... Qc4 {[%clk 0:00:47.1]} 26. Rdc1 {[%clk 0:00:35.3]}
26... Qd3 {[%clk 0:00:34.9]} 27. Rd1 {[%clk 0:00:24.2]} 27... Qb3 {[%clk
0:00:33.9]} 28. Rdb1 {[%clk 0:00:23.2]} 28... Qe6 {[%clk 0:00:33.7]} 29. Ng5
{[%clk 0:00:22.4]} 29... Qc4 {[%clk 0:00:30.5]} 30. Rc1 {[%clk 0:00:21]} 30...
Qb3 {[%clk 0:00:30.2]} 31. Rcb1 {[%clk 0:00:17.4]} 31... Qd3 {[%clk 0:00:22.7]}
32. Rd1 {[%clk 0:00:15]} 32... Qb3 {[%clk 0:00:17.8]} 33. Rdb1 {[%clk
0:00:14.2]} 33... Qc4 {[%clk 0:00:17.8]} 34. Rc1 {[%clk 0:00:13.4]} 34... Qb3
{[%clk 0:00:17.3]} 35. Rcb1 {[%clk 0:00:13.1]} 1/2-1/2